[Event "*** Qualifier 2: Titled Tuesday 3|2 Blitz"]
[Site "Chess.com"]
[Date "2017.04.11"]
[Round "1"]
[White "hansen"]
[Black "korason34"]
[Result "0-1"]
[WhiteElo "2668"]
[BlackElo "2370"]
[TimeControl "180+2"]
[EndTime "13:08:32 PDT"]
[Termination "korason34 won by resignation"]

1. e4 {[%clk 0:03:02]} 1... e5 {[%clk 0:02:57.8]} 2. Nf3 {[%clk 0:03:02.9]} 2...
Nc6 {[%clk 0:02:58.1]} 3. Bb5 {[%clk 0:03:04.1]} 3... a6 {[%clk 0:02:58.4]} 4.
Ba4 {[%clk 0:03:00.9]} 4... Nf6 {[%clk 0:02:57.2]} 5. O-O {[%clk 0:03:01.7]}
5... Be7 {[%clk 0:02:54.6]} 6. Re1 {[%clk 0:03:00.8]} 6... b5 {[%clk 0:02:54.7]}
7. Bb3 {[%clk 0:03:02.2]} 7... d6 {[%clk 0:02:53.9]} 8. c3 {[%clk 0:03:03.4]}
8... O-O {[%clk 0:02:53.5]} 9. h3 {[%clk 0:03:04.3]} 9... Na5 {[%clk 0:02:54.4]}
10. Bc2 {[%clk 0:03:05]} 10... c5 {[%clk 0:02:55.3]} 11. d4 {[%clk 0:03:06.5]}
11... Qc7 {[%clk 0:02:56.3]} 12. Nbd2 {[%clk 0:03:07]} 12... cxd4 {[%clk
0:02:56.5]} 13. cxd4 {[%clk 0:03:08.9]} 13... Bb7 {[%clk 0:02:57.2]} 14. Bd3
{[%clk 0:02:35.1]} 14... Rac8 {[%clk 0:02:55.2]} 15. d5 {[%clk 0:02:18]} 15...
Nd7 {[%clk 0:02:41.2]} 16. Nf1 {[%clk 0:02:17.7]} 16... Nc4 {[%clk 0:02:38.4]}
17. Ng3 {[%clk 0:02:13.9]} 17... Rfe8 {[%clk 0:02:31.5]} 18. b3 {[%clk
0:02:09.6]} 18... Ncb6 {[%clk 0:02:30.7]} 19. Bd2 {[%clk 0:02:10]} 19... Qb8
{[%clk 0:02:22.8]} 20. Nf5 {[%clk 0:02:08.3]} 20... Nc5 {[%clk 0:02:20.7]} 21.
Bc2 {[%clk 0:02:05.9]} 21... Bf8 {[%clk 0:02:19.6]} 22. Nh2 {[%clk 0:02:04.5]}
22... Nbd7 {[%clk 0:02:17.4]} 23. Ng4 {[%clk 0:02:04.2]} 23... h5 {[%clk
0:02:14.2]} 24. Ngh6+ {[%clk 0:01:46.3]} 24... gxh6 {[%clk 0:02:07.7]} 25. Qxh5
{[%clk 0:01:48]} 25... Nf6 {[%clk 0:02:01.5]} 26. Qh4 {[%clk 0:01:48.3]} 26...
Nh7 {[%clk 0:01:27.8]} 27. Bxh6 {[%clk 0:01:45.8]} 27... Kh8 {[%clk 0:01:22.1]}
28. Re3 {[%clk 0:00:40.2]} 28... Bxh6 {[%clk 0:01:11.1]} 29. Nxh6 {[%clk
0:00:32.4]} 29... Qc7 {[%clk 0:01:10.5]} 30. Rf3 {[%clk 0:00:20.1]} 30... Rf8
{[%clk 0:01:11.1]} 31. b4 {[%clk 0:00:20.9]} 31... Na4 {[%clk 0:01:06.6]} 32.
Bxa4 {[%clk 0:00:22.5]} 32... bxa4 {[%clk 0:01:08.4]} 33. Re1 {[%clk 0:00:23.2]}
33... Rce8 {[%clk 0:01:06.2]} 34. Ng4 {[%clk 0:00:24.2]} 34... f6 {[%clk
0:00:55.7]} 35. Qh6 {[%clk 0:00:19.2]} 35... Qg7 {[%clk 0:00:54.7]} 36. Qd2
{[%clk 0:00:20]} 36... Bc8 {[%clk 0:00:52.9]} 37. Nh6 {[%clk 0:00:20.3]} 37...
Ng5 {[%clk 0:00:52.1]} 38. Rg3 {[%clk 0:00:16.8]} 38... Qxh6 {[%clk 0:00:53]}
39. Ree3 {[%clk 0:00:15.9]} 39... Rg8 {[%clk 0:00:51.5]} 40. Qd1 {[%clk
0:00:12.2]} 40... Rg7 {[%clk 0:00:47.7]} 41. Kf1 {[%clk 0:00:12.4]} 41... Bd7
{[%clk 0:00:44.8]} 42. h4 {[%clk 0:00:13.1]} 42... Nf7 {[%clk 0:00:43.3]} 43.
Rxg7 {[%clk 0:00:13.4]} 43... Kxg7 {[%clk 0:00:44.3]} 44. Rg3+ {[%clk
0:00:12.5]} 44... Kh7 {[%clk 0:00:45.3]} 45. Qc2 {[%clk 0:00:13.4]} 45... Rc8
{[%clk 0:00:44.8]} 0-1

[Event "*** Qualifier 2: Titled Tuesday 3|2 Blitz"]
[Site "Chess.com"]
[Date "2017.04.11"]
[Round "1"]
[White "Th3ChessViking"]
[Black "Spartakus1975"]
[Result "0-1"]
[WhiteElo "2278"]
[BlackElo "2540"]
[TimeControl "180+2"]
[EndTime "13:08:35 PDT"]
[Termination "Spartakus1975 won on time"]

1. d4 {[%clk 0:02:57.8]} 1... d5 {[%clk 0:02:59.7]} 2. Bf4 {[%clk 0:02:58]} 2...
c5 {[%clk 0:02:59.3]} 3. e3 {[%clk 0:02:58.1]} 3... Nc6 {[%clk 0:02:58.3]} 4. c3
{[%clk 0:02:58]} 4... Nf6 {[%clk 0:02:55.5]} 5. Nd2 {[%clk 0:02:58.4]} 5... Qb6
{[%clk 0:02:55.5]} 6. Qb3 {[%clk 0:02:57]} 6... c4 {[%clk 0:02:53.7]} 7. Qc2
{[%clk 0:02:57.4]} 7... g6 {[%clk 0:02:54.9]} 8. h3 {[%clk 0:02:56.4]} 8... Bf5
{[%clk 0:02:55.2]} 9. Qc1 {[%clk 0:02:57.8]} 9... Bg7 {[%clk 0:02:55.1]} 10.
Ngf3 {[%clk 0:02:59.7]} 10... O-O {[%clk 0:02:55.6]} 11. Be2 {[%clk 0:03:01.1]}
11... Rfc8 {[%clk 0:02:55.5]} 12. O-O {[%clk 0:03:01.7]} 12... Qd8 {[%clk
0:02:56.1]} 13. b3 {[%clk 0:02:41.3]} 13... b5 {[%clk 0:02:55.4]} 14. Qb2 {[%clk
0:02:21.5]} 14... Ne4 {[%clk 0:02:19.6]} 15. Nxe4 {[%clk 0:02:16.8]} 15... Bxe4
{[%clk 0:02:20.4]} 16. Nd2 {[%clk 0:02:17.1]} 16... Bf5 {[%clk 0:02:20.5]} 17.
Nf3 {[%clk 0:01:57.5]} 17... Qb6 {[%clk 0:02:05.3]} 18. Bg3 {[%clk 0:01:37.3]}
18... h6 {[%clk 0:02:01.2]} 19. Rfc1 {[%clk 0:01:32.8]} 19... Kh7 {[%clk
0:01:59]} 20. Bd1 {[%clk 0:01:20.3]} 20... Be4 {[%clk 0:01:46.3]} 21. Nd2 {[%clk
0:01:18.6]} 21... Bf5 {[%clk 0:01:45.9]} 22. Bf3 {[%clk 0:01:18.7]} 22... e6
{[%clk 0:01:43]} 23. Bh2 {[%clk 0:00:50.6]} 23... Bd3 {[%clk 0:01:38.4]} 24. Bg3
{[%clk 0:00:44.7]} 24... a5 {[%clk 0:01:32.3]} 25. bxc4 {[%clk 0:00:43]} 25...
dxc4 {[%clk 0:01:33.5]} 26. a4 {[%clk 0:00:38.1]} 26... b4 {[%clk 0:01:32]} 27.
cxb4 {[%clk 0:00:39]} 27... Qxb4 {[%clk 0:01:20.7]} 28. Qxb4 {[%clk 0:00:38.6]}
28... axb4 {[%clk 0:01:15]} 29. Nxc4 {[%clk 0:00:35.3]} 29... b3 {[%clk
0:01:15.7]} 30. Nb2 {[%clk 0:00:32.7]} 30... Bc2 {[%clk 0:01:15]} 31. Bxc6
{[%clk 0:00:17.7]} 31... Rxc6 {[%clk 0:01:15.1]} 32. a5 {[%clk 0:00:18.4]} 32...
Bf8 {[%clk 0:01:10.2]} 33. Ra4 {[%clk 0:00:14.2]} 33... f6 {[%clk 0:00:59.6]}
34. Kf1 {[%clk 0:00:15]} 34... Ra7 {[%clk 0:00:52.4]} 35. Ke2 {[%clk 0:00:15.7]}
35... Rca6 {[%clk 0:00:53.2]} 36. Bb8 {[%clk 0:00:15]} 36... Rb7 {[%clk
0:00:53.7]} 37. Bg3 {[%clk 0:00:15.4]} 37... Rb5 {[%clk 0:00:53.6]} 38. f3
{[%clk 0:00:13.8]} 38... Rbxa5 {[%clk 0:00:51.4]} 39. Rxa5 {[%clk 0:00:15.7]}
39... Rxa5 {[%clk 0:00:52.3]} 40. Be1 {[%clk 0:00:17.6]} 40... Ra2 {[%clk
0:00:52.1]} 41. Bc3 {[%clk 0:00:18.5]} 41... Ba3 {[%clk 0:00:53]} 0-1

[Event "*** Qualifier 2: Titled Tuesday 3|2 Blitz"]
[Site "Chess.com"]
[Date "2017.04.11"]
[Round "1"]
[White "prochn"]
[Black "amaidel"]
[Result "1-0"]
[WhiteElo "2205"]
[BlackElo "2465"]
[TimeControl "180+2"]
[EndTime "13:08:45 PDT"]
[Termination "prochn won by resignation"]

1. d4 {[%clk 0:03:02]} 1... d5 {[%clk 0:03:00.3]} 2. c4 {[%clk 0:03:02.7]} 2...
c6 {[%clk 0:03:01.6]} 3. cxd5 {[%clk 0:03:03.1]} 3... cxd5 {[%clk 0:03:02]} 4.
Nc3 {[%clk 0:03:04.2]} 4... Nf6 {[%clk 0:03:01.5]} 5. Bf4 {[%clk 0:03:04.7]}
5... a6 {[%clk 0:02:58.2]} 6. e3 {[%clk 0:03:01]} 6... Nc6 {[%clk 0:02:58.8]} 7.
Bd3 {[%clk 0:02:55.5]} 7... e6 {[%clk 0:02:59.9]} 8. Nf3 {[%clk 0:02:51.5]} 8...
Be7 {[%clk 0:03:00.9]} 9. Rc1 {[%clk 0:02:51.6]} 9... O-O {[%clk 0:03:01.5]} 10.
h3 {[%clk 0:02:51]} 10... Bd7 {[%clk 0:03:02.6]} 11. O-O {[%clk 0:02:51.6]}
11... Rc8 {[%clk 0:03:02.8]} 12. Ne5 {[%clk 0:02:52.5]} 12... Nxe5 {[%clk
0:02:35.7]} 13. Bxe5 {[%clk 0:02:23.3]} 13... Bc6 {[%clk 0:02:35.9]} 14. Bb1
{[%clk 0:02:13.9]} 14... Nd7 {[%clk 0:02:34.4]} 15. Bg3 {[%clk 0:01:58.2]} 15...
f5 {[%clk 0:02:32.8]} 16. Qb3 {[%clk 0:01:40.5]} 16... Nb6 {[%clk 0:02:28.8]}
17. Bd3 {[%clk 0:01:36.4]} 17... Kh8 {[%clk 0:02:14]} 18. f3 {[%clk 0:01:37.1]}
18... Nc4 {[%clk 0:02:07]} 19. Bxc4 {[%clk 0:01:20.3]} 19... dxc4 {[%clk
0:02:08.9]} 20. Qxc4 {[%clk 0:01:13.4]} 20... Bb5 {[%clk 0:02:07.9]} 21. Qxe6
{[%clk 0:01:14.1]} 21... Bxf1 {[%clk 0:02:08.3]} 22. Rxf1 {[%clk 0:01:15.1]}
22... Bb4 {[%clk 0:02:06.2]} 23. Qb3 {[%clk 0:01:01.6]} 23... Bxc3 {[%clk
0:02:03]} 24. bxc3 {[%clk 0:01:03.5]} 24... b5 {[%clk 0:02:03.6]} 25. Be5 {[%clk
0:01:00.2]} 25... Qd7 {[%clk 0:02:01.4]} 26. d5 {[%clk 0:00:55.1]} 26... Rc4
{[%clk 0:01:56.1]} 27. f4 {[%clk 0:00:53]} 27... Qxd5 {[%clk 0:01:54.5]} 28. Rd1
{[%clk 0:00:50.6]} 28... Qe6 {[%clk 0:01:51.1]} 29. Qa3 {[%clk 0:00:50.5]} 29...
Re8 {[%clk 0:01:47.2]} 30. Rd6 {[%clk 0:00:50.3]} 30... Qe7 {[%clk 0:01:41.9]}
31. Qxa6 {[%clk 0:00:49.1]} 31... Ra4 {[%clk 0:01:41.1]} 32. Qxb5 {[%clk
0:00:46.2]} 32... Ra7 {[%clk 0:01:35.8]} 33. Qd5 {[%clk 0:00:42.1]} 33... Rea8
{[%clk 0:01:27.9]} 34. Kh2 {[%clk 0:00:38.1]} 34... Ra5 {[%clk 0:01:23.5]} 35.
Qd4 {[%clk 0:00:35.3]} 35... Ra4 {[%clk 0:01:21.3]} 36. c4 {[%clk 0:00:36.2]}
36... R4a7 {[%clk 0:01:12.5]} 37. c5 {[%clk 0:00:36.9]} 37... Qf7 {[%clk
0:01:06.1]} 38. c6 {[%clk 0:00:34.1]} 38... Rxa2 {[%clk 0:01:06]} 39. Rd8+
{[%clk 0:00:34.6]} 39... Rxd8 {[%clk 0:01:05.1]} 40. Qxd8+ {[%clk 0:00:35.4]}
40... Qg8 {[%clk 0:01:06.1]} 41. c7 {[%clk 0:00:35.4]} 41... Rc2 {[%clk
0:01:06.6]} 42. Qd7 {[%clk 0:00:30.6]} 42... h5 {[%clk 0:00:47.4]} 43. Bxg7+
{[%clk 0:00:27.3]} 43... Qxg7 {[%clk 0:00:46.1]} 44. c8=Q+ {[%clk 0:00:27.5]}
44... Rxc8 {[%clk 0:00:46.7]} 45. Qxc8+ {[%clk 0:00:29.4]} 45... Kh7 {[%clk
0:00:46.5]} 46. Qxf5+ {[%clk 0:00:30.4]} 46... Kh6 {[%clk 0:00:47.8]} 47. Qg5+
{[%clk 0:00:29.9]} 47... Qxg5 {[%clk 0:00:48.5]} 48. fxg5+ {[%clk 0:00:31.8]}
48... Kxg5 {[%clk 0:00:50.4]} 49. Kg3 {[%clk 0:00:33.4]} 49... h4+ {[%clk
0:00:51.3]} 50. Kf3 {[%clk 0:00:34.7]} 50... Kf5 {[%clk 0:00:53]} 51. e4+ {[%clk
0:00:35.7]} 1-0

[Event "*** Qualifier 2: Titled Tuesday 3|2 Blitz"]
[Site "Chess.com"]
[Date "2017.04.11"]
[Round "1"]
[White "Bigfish1995"]
[Black "evgenyermolaev"]
[Result "0-1"]
[WhiteElo "2644"]
[BlackElo "2368"]
[TimeControl "180+2"]
[EndTime "13:08:53 PDT"]
[Termination "evgenyermolaev won by resignation"]

1. e4 {[%clk 0:03:01.1]} 1... c5 {[%clk 0:02:55.2]} 2. Nf3 {[%clk 0:03:01.1]}
2... d6 {[%clk 0:02:56.3]} 3. d4 {[%clk 0:03:00.8]} 3... cxd4 {[%clk 0:02:57.5]}
4. Nxd4 {[%clk 0:03:01.9]} 4... Nf6 {[%clk 0:02:59.4]} 5. Nc3 {[%clk 0:03:02.7]}
5... a6 {[%clk 0:03:00.6]} 6. Qd2 {[%clk 0:03:01.8]} 6... e5 {[%clk 0:02:56.4]}
7. Nb3 {[%clk 0:03:02.2]} 7... Be7 {[%clk 0:02:57.4]} 8. Bc4 {[%clk 0:02:58.7]}
8... O-O {[%clk 0:02:56.4]} 9. O-O {[%clk 0:02:59.7]} 9... Nc6 {[%clk
0:02:54.1]} 10. a4 {[%clk 0:02:55.9]} 10... Be6 {[%clk 0:02:46.5]} 11. Bxe6
{[%clk 0:02:45.9]} 11... fxe6 {[%clk 0:02:47.4]} 12. Qd3 {[%clk 0:02:42.7]}
12... Nb4 {[%clk 0:02:18.5]} 13. Qe2 {[%clk 0:01:13.1]} 13... Qe8 {[%clk
0:01:43.4]} 14. a5 {[%clk 0:01:13]} 14... Rc8 {[%clk 0:01:36.2]} 15. Ra4 {[%clk
0:01:12.2]} 15... Rxc3 {[%clk 0:01:01.7]} 16. Rxb4 {[%clk 0:01:12]} 16... Rc7
{[%clk 0:01:02.7]} 17. Rc4 {[%clk 0:00:58.2]} 17... Qb5 {[%clk 0:01:01.2]} 18.
Rxc7 {[%clk 0:00:50.6]} 18... Qxe2 {[%clk 0:01:01.5]} 19. Rxe7 {[%clk
0:00:51.3]} 19... Nxe4 {[%clk 0:00:42.9]} 20. Be3 {[%clk 0:00:47.1]} 20... d5
{[%clk 0:00:30]} 21. c3 {[%clk 0:00:32.2]} 21... Qxb2 {[%clk 0:00:21.4]} 22.
Rxb7 {[%clk 0:00:32.2]} 22... Qxc3 {[%clk 0:00:22]} 23. Rc1 {[%clk 0:00:31]}
23... Qd3 {[%clk 0:00:20.2]} 24. h3 {[%clk 0:00:29.5]} 24... d4 {[%clk
0:00:19.4]} 25. Rcc7 {[%clk 0:00:30.1]} 25... Nd6 {[%clk 0:00:20.4]} 26. Rxg7+
{[%clk 0:00:30.6]} 26... Kh8 {[%clk 0:00:21.7]} 27. Bxd4 {[%clk 0:00:16.1]}
27... exd4 {[%clk 0:00:17.4]} 28. Rbd7 {[%clk 0:00:16.6]} 28... Nf7 {[%clk
0:00:14]} 29. Rg3 {[%clk 0:00:16.9]} 29... Qd1+ {[%clk 0:00:13.2]} 30. Kh2
{[%clk 0:00:17.4]} 30... Ne5 {[%clk 0:00:12.9]} 31. Rxd4 {[%clk 0:00:17.8]}
31... Qb1 {[%clk 0:00:10.8]} 32. f4 {[%clk 0:00:18.3]} 32... Ng6 {[%clk
0:00:11.3]} 33. Nc5 {[%clk 0:00:19.4]} 33... Qf5 {[%clk 0:00:11.5]} 34. Nd7
{[%clk 0:00:19.4]} 34... Rd8 {[%clk 0:00:10.8]} 35. Rg5 {[%clk 0:00:20.4]} 35...
Qb1 {[%clk 0:00:08.1]} 36. Rc5 {[%clk 0:00:19]} 36... Qa1 {[%clk 0:00:06.8]} 37.
Rcc4 {[%clk 0:00:19.1]} 37... Qxa5 {[%clk 0:00:07.3]} 38. Rd6 {[%clk 0:00:17]}
38... Qb5 {[%clk 0:00:07.8]} 39. Rcd4 {[%clk 0:00:18.1]} 39... Nxf4 {[%clk
0:00:07.5]} 40. Rb6 {[%clk 0:00:17.6]} 40... Qxb6 {[%clk 0:00:05.6]} 0-1

[Event "*** Qualifier 2: Titled Tuesday 3|2 Blitz"]
[Site "Chess.com"]
[Date "2017.04.11"]
[Round "1"]
[White "aRk_iN"]
[Black "Ginger_GM"]
[Result "0-1"]
[WhiteElo "2142"]
[BlackElo "2441"]
[TimeControl "180+2"]
[EndTime "13:08:56 PDT"]
[Termination "Ginger_GM won by resignation"]

1. e4 {[%clk 0:03:02]} 1... e6 {[%clk 0:03:00.4]} 2. d4 {[%clk 0:03:02.8]} 2...
d5 {[%clk 0:03:01.2]} 3. Nc3 {[%clk 0:03:04.1]} 3... Bb4 {[%clk 0:03:01.6]} 4.
e5 {[%clk 0:03:05.3]} 4... Ne7 {[%clk 0:03:02.2]} 5. a3 {[%clk 0:03:05.9]} 5...
Bxc3+ {[%clk 0:03:02.8]} 6. bxc3 {[%clk 0:03:07.8]} 6... c5 {[%clk 0:03:03.9]}
7. Qg4 {[%clk 0:03:08.9]} 7... Qc7 {[%clk 0:03:05.1]} 8. Qxg7 {[%clk 0:03:04.9]}
8... Rg8 {[%clk 0:03:05]} 9. Qxh7 {[%clk 0:03:06.3]} 9... cxd4 {[%clk
0:03:05.5]} 10. Ne2 {[%clk 0:03:07.7]} 10... dxc3 {[%clk 0:03:05.2]} 11. f4
{[%clk 0:03:08.3]} 11... Nbc6 {[%clk 0:03:04.6]} 12. Qd3 {[%clk 0:03:08.2]}
12... Nf5 {[%clk 0:03:05]} 13. Ng3 {[%clk 0:02:53.2]} 13... Nxg3 {[%clk
0:02:51.6]} 14. hxg3 {[%clk 0:02:55.1]} 14... d4 {[%clk 0:02:49.1]} 15. Be2
{[%clk 0:02:49.4]} 15... b6 {[%clk 0:02:44.6]} 16. g4 {[%clk 0:02:48.2]} 16...
Bb7 {[%clk 0:02:41.7]} 17. Bf3 {[%clk 0:02:49.5]} 17... O-O-O {[%clk 0:02:41.9]}
18. Rb1 {[%clk 0:02:30.7]} 18... Rh8 {[%clk 0:02:28.5]} 19. Rh7 {[%clk
0:02:30.8]} 19... Na5 {[%clk 0:02:18.4]} 20. a4 {[%clk 0:02:10.8]} 20... Bxf3
{[%clk 0:01:55.7]} 21. gxf3 {[%clk 0:02:12.7]} 21... Rxh7 {[%clk 0:01:55.8]} 22.
Qxh7 {[%clk 0:02:13.1]} 22... d3 {[%clk 0:01:49.3]} 23. cxd3 {[%clk 0:00:59.9]}
23... c2 {[%clk 0:01:27.7]} 24. Rb5 {[%clk 0:00:27.6]} 24... Qc3+ {[%clk
0:01:21.6]} 25. Ke2 {[%clk 0:00:28.8]} 25... Nb3 {[%clk 0:01:15.4]} 26. Rxb3
{[%clk 0:00:21.1]} 26... Qxb3 {[%clk 0:01:16.1]} 27. Qe4 {[%clk 0:00:18]} 27...
Qd5 {[%clk 0:01:06.7]} 28. Kd2 {[%clk 0:00:14.2]} 28... Qxe4 {[%clk 0:00:55.1]}
29. fxe4 {[%clk 0:00:16.1]} 29... Rd4 {[%clk 0:00:56]} 30. Kxc2 {[%clk
0:00:16.1]} 30... Rxa4 {[%clk 0:00:57.2]} 31. f5 {[%clk 0:00:14.8]} 31... Kd7
{[%clk 0:00:48.5]} 32. g5 {[%clk 0:00:11.4]} 32... exf5 {[%clk 0:00:46.2]} 33.
exf5 {[%clk 0:00:13.1]} 33... Rg4 {[%clk 0:00:46.1]} 34. Kc3 {[%clk 0:00:08.4]}
34... a5 {[%clk 0:00:41.8]} 35. d4 {[%clk 0:00:08.1]} 35... Kc6 {[%clk
0:00:42.8]} 36. Bd2 {[%clk 0:00:03.1]} 36... b5 {[%clk 0:00:42]} 37. Kd3 {[%clk
0:00:03.3]} 37... b4 {[%clk 0:00:39.4]} 38. Kc4 {[%clk 0:00:04.1]} 38... Rg2
{[%clk 0:00:37.6]} 39. Be3 {[%clk 0:00:02.7]} 39... Rc2+ {[%clk 0:00:36.3]} 40.
Kd3 {[%clk 0:00:03]} 40... Rc3+ {[%clk 0:00:36.5]} 41. Ke4 {[%clk 0:00:04.6]}
41... b3 {[%clk 0:00:37.4]} 42. g6 {[%clk 0:00:06]} 42... fxg6 {[%clk
0:00:37.7]} 43. fxg6 {[%clk 0:00:07.3]} 43... b2 {[%clk 0:00:38.9]} 44. g7
{[%clk 0:00:08.3]} 44... b1=Q+ {[%clk 0:00:39.7]} 45. Kf4 {[%clk 0:00:06.8]}
45... Qg6 {[%clk 0:00:38.3]} 0-1

[Event "*** Qualifier 2: Titled Tuesday 3|2 Blitz"]
[Site "Chess.com"]
[Date "2017.04.11"]
[Round "1"]
[White "Robin-Side"]
[Black "hsskoo"]
[Result "1-0"]
[WhiteElo "2402"]
[BlackElo "1982"]
[TimeControl "180+2"]
[EndTime "13:09:18 PDT"]
[Termination "Robin-Side won on time"]

1. e4 {[%clk 0:03:01]} 1... e6 {[%clk 0:02:44.6]} 2. d4 {[%clk 0:03:01.2]} 2...
b6 {[%clk 0:02:38]} 3. Bd3 {[%clk 0:02:57.5]} 3... Bb7 {[%clk 0:02:38.9]} 4. Nf3
{[%clk 0:02:58.1]} 4... d6 {[%clk 0:02:39.2]} 5. O-O {[%clk 0:02:57.4]} 5... Nd7
{[%clk 0:02:39.9]} 6. Qe2 {[%clk 0:02:57.6]} 6... Be7 {[%clk 0:02:39.7]} 7. c3
{[%clk 0:02:39.8]} 7... e5 {[%clk 0:02:37.5]} 8. Bc4 {[%clk 0:02:26.6]} 8...
Ngf6 {[%clk 0:02:18.2]} 9. Nbd2 {[%clk 0:02:11.6]} 9... O-O {[%clk 0:02:16.5]}
10. dxe5 {[%clk 0:02:06.1]} 10... Nxe5 {[%clk 0:02:11.7]} 11. Nxe5 {[%clk
0:02:06.9]} 11... dxe5 {[%clk 0:02:11.7]} 12. Rd1 {[%clk 0:02:02.4]} 12... c5
{[%clk 0:02:11.3]} 13. f3 {[%clk 0:02:01.2]} 13... Qc7 {[%clk 0:02:11.6]} 14.
Nf1 {[%clk 0:02:01.1]} 14... Rad8 {[%clk 0:02:08.5]} 15. Bg5 {[%clk 0:01:59.2]}
15... Nh5 {[%clk 0:02:05.6]} 16. Be3 {[%clk 0:01:48.1]} 16... Kh8 {[%clk
0:01:41.5]} 17. Rxd8 {[%clk 0:01:45.2]} 17... Bxd8 {[%clk 0:01:39.2]} 18. Rd1
{[%clk 0:01:44.5]} 18... Bh4 {[%clk 0:01:32.7]} 19. g3 {[%clk 0:01:40.3]} 19...
Be7 {[%clk 0:01:28.5]} 20. Bf2 {[%clk 0:01:40.7]} 20... h6 {[%clk 0:01:23.5]}
21. Ne3 {[%clk 0:01:41.1]} 21... g6 {[%clk 0:01:12.4]} 22. Nd5 {[%clk
0:01:31.3]} 22... Bxd5 {[%clk 0:00:58.3]} 23. Rxd5 {[%clk 0:01:25.9]} 23... Nf6
{[%clk 0:00:55.8]} 24. Rd3 {[%clk 0:01:22.8]} 24... Kg7 {[%clk 0:00:46.8]} 25.
Qd2 {[%clk 0:01:21]} 25... Rd8 {[%clk 0:00:45.6]} 26. Be3 {[%clk 0:01:20.3]}
26... Ng8 {[%clk 0:00:40.4]} 27. Rd5 {[%clk 0:01:13.9]} 27... g5 {[%clk
0:00:38.7]} 28. f4 {[%clk 0:01:06.8]} 28... exf4 {[%clk 0:00:27.5]} 29. gxf4
{[%clk 0:01:06.6]} 29... Nf6 {[%clk 0:00:26.6]} 30. Rxd8 {[%clk 0:00:55.8]}
30... Qxd8 {[%clk 0:00:24.5]} 31. Qxd8 {[%clk 0:00:44.7]} 31... Bxd8 {[%clk
0:00:11.5]} 32. fxg5 {[%clk 0:00:45.6]} 32... Nxe4 {[%clk 0:00:11.5]} 33. gxh6+
{[%clk 0:00:45.3]} 33... Kh8 {[%clk 0:00:07.4]} 34. Bxf7 {[%clk 0:00:37.8]}
34... Bg5 {[%clk 0:00:07.8]} 35. Bxg5 {[%clk 0:00:34.8]} 35... Nxg5 {[%clk
0:00:08.1]} 36. Bd5 {[%clk 0:00:36.3]} 36... Kh7 {[%clk 0:00:05.1]} 37. Kf2
{[%clk 0:00:37.6]} 37... Kxh6 {[%clk 0:00:05.2]} 38. Kg3 {[%clk 0:00:38.7]}
38... Nh7 {[%clk 0:00:02.4]} 39. Bf3 {[%clk 0:00:31.9]} 1-0